bitfinex/quotes_ETHUSD_20240730
["timestamp","ask_amount","ask_price","bid_price","bid_amount"]
[1722316300802,3.05136958,3319.8,3319.6,35.0]
[1722316300975,2.4098,3319.8,3319.6,35.0]
[1722316301174,0.05295045,3319.7,3319.6,35.0]
[1722316301397,2.4098,3319.8,3319.6,35.0]
[1722316303274,2.40965,3320.0,3319.6,35.0]
[1722316303275,2.46280045,3319.7,3319.6,35.0]
[1722316303479,2.40985,3319.7,3319.6,35.0]
[1722316303729,2.46280045,3319.7,3319.6,35.0]
[1722316305684,5.51434376,3319.7,3319.6,35.0]
[1722316305882,8.51217814,3319.7,3319.6,35.0]
[1722316306123,9.06217814,3319.7,3319.6,35.0]
[1722316306983,3.10449376,3319.7,3319.6,35.0]
[1722316308030,0.69464376,3319.7,3319.6,35.0]
[1722316309082,0.69464376,3319.7,3319.6,36.113]
[1722316309417,0.69435581,3319.7,3319.6,38.5012]
[1722316309604,0.05295045,3319.7,3319.6,38.5012]
[1722316309784,2.40956,3320.1,3319.6,41.55021288]
[1722316309985,0.64145651,3320.0,3319.6,38.5012]
[1722316310284,0.05235146,3319.9,3319.6,38.5012]
[1722316310631,2.40956,3320.1,3319.6,38.5012]
[1722316310832,0.05235146,3319.8,3319.6,38.5012]
[1722316311116,2.40935,3320.4,3319.6,38.5012]
[1722316311345,3.05101342,3320.3,3319.8,1.113]
[1722316311490,0.64159342,3320.2,3319.8,1.113]
[1722316311683,2.40942,3320.3,3319.8,1.113]
[1722316312017,0.69409741,3320.2,3319.8,1.113]
[1722316312214,0.64160555,3320.1,3319.8,1.113]
[1722316312414,0.05249186,3320.2,3319.8,1.113]
[1722316312581,0.64161061,3320.1,3319.8,1.113]
[1722316312912,0.05249186,3320.1,3319.8,4.16201288]
[1722316313125,2.40942,3320.3,3319.8,4.16201288]
[1722316313329,0.05249186,3320.0,3319.8,4.16201288]
[1722316313628,3.05143408,3319.9,3319.6,38.04901288]
[1722316313818,2.46220186,3319.9,3319.6,35.0]
[1722316314019,3.05152104,3319.8,3319.6,35.0]
[1722316314213,2.40979,3319.8,3319.6,35.0]
[1722316314552,0.05256676,3319.7,3319.6,35.0]
[1722316314849,2.40979,3319.8,3319.6,35.0]
[1722316314994,0.05256676,3319.7,3319.6,35.0]
[1722316315195,2.40979,3319.8,3319.6,35.0]
[1722316315551,0.0525106,3319.7,3319.6,35.0]
[1722316315905,3.0514079,3319.7,3319.6,35.0]
[1722316316108,3.1039185,3319.7,3319.6,35.0]
[1722316316408,2.4623606,3319.7,3319.6,35.0]
[1722316317029,0.0525106,3319.7,3319.6,35.0]
[1722316317238,2.40951,3320.2,3319.6,35.0]
[1722316317239,2.40966,3320.0,3319.6,37.4647]
[1722316317533,0.69403911,3319.9,3319.6,37.4647]
[1722316317693,0.05248253,3319.9,3319.6,37.4647]
[1722316317899,2.46219253,3319.9,3319.6,37.4647]
[1722316318699,0.05248253,3319.9,3319.6,37.4647]
[1722316318925,2.40961,3320.1,3319.6,37.4647]
[1722316319234,0.64163139,3320.0,3319.6,37.4647]
[1722316319433,0.64163139,3319.9,3319.6,37.4647]
[1722316319601,0.05249186,3319.9,3319.6,37.4647]
[1722316319938,2.40961,3320.1,3319.6,37.4647]
[1722316320135,0.05249186,3319.8,3319.6,37.4647]
[1722316320429,2.40964,3320.0,3319.6,37.4647]
[1722316320629,3.05139938,3319.9,3319.6,35.0]
[1722316320833,0.69412124,3319.8,3319.6,35.0]
[1722316321051,0.05249186,3319.8,3319.6,35.0]
[1722316321250,3.05138494,3319.7,3319.6,35.0]
[1722316321459,2.40985,3319.7,3319.6,35.0]
[1722316321620,3.0513372,3319.7,3319.6,35.0]
[1722316321804,5.5416372,3319.7,3319.6,35.0]
[1722316322158,8.0040212,3319.7,3319.6,35.0]
[1722316322827,8.80442332,3319.7,3319.6,35.0]
[1722316324637,9.35442332,3319.7,3319.6,35.0]
[1722316324827,10.46742332,3319.7,3319.6,35.0]
[1722316325135,9.35442332,3319.7,3319.6,35.0]
[1722316326713,2.41019,3319.3,3318.9,1.113]
[1722316326918,0.05225786,3319.2,3318.9,1.113]
[1722316327143,2.41019,3319.3,3319.0,35.0]
[1722316327303,0.05225786,3319.1,3319.0,35.0]
[1722316327501,2.41019,3319.3,3319.0,35.0]
[1722316327705,0.05223913,3319.2,3319.0,35.0]
[1722316327943,2.41019,3319.3,3319.0,35.0]
[1722316328169,0.05223913,3319.1,3319.0,38.41782071]
[1722316328453,2.41008,3319.4,3319.0,36.113]
[1722316328660,0.05220638,3319.3,3319.0,36.113]
[1722316329548,2.46235638,3319.3,3319.0,36.113]
[1722316330243,2.41022,3319.2,3319.0,35.0]
[1722316330446,2.41029,3319.1,3319.0,35.0]
[1722316330846,2.46249638,3319.1,3319.0,35.0]
[1722316333549,2.41029,3319.1,3319.0,35.0]
[1722316336579,2.46249638,3319.1,3319.0,35.0]
[1722316344279,5.36005802,3319.1,3319.0,35.0]
[1722316344601,2.41052,3318.8,3318.3,2.3729]
[1722316344977,0.05208934,3318.7,3318.4,35.0]
[1722316345378,2.41052,3318.8,3318.4,35.0]
[1722316348384,2.41037,3319.0,3318.4,35.0]
[1722316348672,0.05202378,3318.9,3318.4,35.0]
[1722316348877,2.41037,3319.0,3318.4,35.0]
[1722316349107,0.05202378,3318.9,3318.4,35.0]
[1722316349310,2.41037,3319.0,3318.4,35.0]
[1722316349473,0.05202378,3318.9,3318.4,35.0]
[1722316349681,2.41037,3319.0,3318.4,35.0]
[1722316349905,2.41051,3318.8,3318.4,35.0]
[1722316350278,0.05196291,3318.7,3318.4,35.0]
[1722316350480,2.41051,3318.8,3318.4,35.0]
[1722316350676,0.05196291,3318.7,3318.4,35.0]
[1722316350876,2.41051,3318.8,3318.4,35.0]
[1722316351077,0.05196291,3318.7,3318.4,35.0]
[1722316351291,2.41051,3318.8,3318.4,35.0]
[1722316351503,0.05196291,3318.7,3318.4,35.0]
[1722316351706,2.41051,3318.8,3318.4,35.0]
[1722316351915,0.05196291,3318.7,3318.4,35.0]
[1722316352219,2.41051,3318.8,3318.4,35.0]
[1722316352716,0.05196291,3318.7,3318.4,35.0]
[1722316352913,2.41051,3318.8,3318.4,35.0]
[1722316353114,0.05196291,3318.7,3318.4,35.0]
[1722316353321,2.41051,3318.8,3318.4,35.0]
[1722316353536,0.05196291,3318.7,3318.4,35.0]
[1722316353830,2.41051,3318.8,3318.4,35.0]
[1722316354005,2.41059,3318.7,3318.4,35.0]
[1722316357138,2.41027,3319.2,3318.6,1.113]
[1722316357337,2.41027,3319.2,3318.5,2.35076572]
[1722316357338,0.05196761,3319.1,3318.8,1.113]
[1722316357698,0.05196761,3319.1,3318.9,35.0]
[1722316357884,2.41027,3319.2,3318.9,35.0]
[1722316359427,0.05206124,3319.1,3318.9,35.0]
[1722316359622,2.41036,3319.0,3318.9,35.0]
[1722316360000,2.46230421,3319.0,3318.9,35.0]
[1722316364720,0.05194421,3319.0,3318.9,35.0]
[1722316364916,2.41027,3319.2,3318.9,35.0]
[1722316365121,0.69280738,3319.1,3318.9,35.0]
[1722316365320,0.6408819,3319.0,3318.9,35.0]
[1722316365745,0.69283547,3319.0,3318.9,35.0]
[1722316366551,0.69282702,3319.0,3318.9,35.0]
[1722316366943,0.05195357,3319.0,3318.9,35.0]
[1722316367246,2.41022,3319.2,3318.9,35.0]
[1722316367421,0.05195357,3319.0,3318.9,35.0]
[1722316367621,0.64088422,3319.0,3318.9,35.0]
[1722316367822,0.69283779,3319.0,3318.9,35.0]
[1722316368748,3.10319779,3319.0,3318.9,35.0]
[1722316369454,6.29739657,3319.0,3318.9,35.0]
[1722316369638,0.69283779,3319.0,3318.9,37.3665]
[1722316369849,0.69281329,3319.0,3318.9,37.3665]
[1722316370046,0.05195357,3319.0,3318.9,37.3665]
[1722316370446,7.37,3319.4,3318.9,37.3665]
[1722316370641,0.05189739,3319.0,3318.9,37.3665]
[1722316370951,0.05193016,3319.0,3318.9,37.3665]
[1722316371149,2.41022,3319.2,3318.9,37.3665]
[1722316371356,0.69278471,3319.1,3318.9,37.3665]
[1722316371655,0.05193016,3319.1,3318.9,37.3665]
[1722316371825,2.46223016,3319.1,3318.9,37.3665]
[1722316372935,0.64093744,3319.0,3318.9,35.0]
[1722316373131,0.69293783,3319.0,3318.9,35.0]
[1722316374571,0.05200039,3319.0,3318.9,35.0]
[1722316374734,0.05200039,3319.0,3318.9,38.04901288]
[1722316374941,7.37,3319.4,3318.9,40.48791288]
[1722316375151,0.6926401,3319.3,3318.9,40.48791288]
[1722316375367,0.64072398,3319.2,3318.9,40.48791288]
[1722316375572,0.05191612,3319.3,3318.9,40.48791288]
[1722316375772,7.37,3319.4,3319.0,4.22226801]
[1722316376075,0.64081121,3319.3,3319.0,4.22226801]
[1722316376271,0.05191612,3319.2,3319.0,4.22226801]
[1722316376472,7.37,3319.4,3319.0,4.22226801]
[1722316376777,0.69283606,3319.3,3319.0,6.63259801]
[1722316377077,0.05199572,3319.3,3319.2,2.264]
[1722316377273,0.05199572,3319.3,3319.2,2.32424879]
[1722316377475,2.40979,3319.8,3319.2,4.24116564]
[1722316377781,0.69304116,3319.7,3319.2,4.24116564]
[1722316377962,0.64078798,3319.6,3319.3,35.0]
[1722316378287,0.05229999,3319.5,3319.3,35.0]
[1722316378442,2.40985,3319.7,3319.3,35.0]
[1722316378643,0.69336145,3319.6,3319.3,35.0]
[1722316378981,0.64096316,3319.5,3319.3,35.0]
[1722316379194,2.46235829,3319.6,3319.3,35.0]
[1722316379358,2.40996,3319.6,3319.3,35.0]
[1722316379563,0.05239829,3319.5,3319.3,35.0]
[1722316380888,0.64112776,3319.4,3319.3,35.0]
[1722316381058,0.69348858,3319.4,3319.3,35.0]
[1722316381565,3.10355858,3319.4,3319.3,35.0]
[1722316385384,0.69348858,3319.4,3319.3,35.0]
[1722316385789,0.69326606,3319.4,3319.3,35.0]
[1722316386086,0.05236082,3319.4,3319.3,35.0]
[1722316386584,0.05225786,3319.4,3319.3,35.0]
[1722316386963,2.40985,3319.7,3319.3,35.0]
[1722316387164,0.05225786,3319.4,3319.3,35.0]
[1722316387365,2.40985,3319.7,3319.3,35.0]
[1722316387668,0.05225786,3319.4,3319.3,35.0]
[1722316387870,2.40985,3319.7,3319.3,35.0]
[1722316388181,2.40971,3319.9,3319.3,35.0]
[1722316388389,0.05225786,3319.6,3319.3,38.04901288]
[1722316388585,2.40979,3319.8,3319.3,35.0]
[1722316388787,3.05093422,3319.7,3319.3,35.0]
[1722316388990,2.46224422,3319.7,3319.3,35.0]
[1722316390193,0.05238422,3319.7,3319.6,1.113]
[1722316390390,0.05238422,3319.7,3319.6,3.3737]
[1722316390692,2.40957,3320.1,3319.6,3.71709474]
[1722316390896,0.05240296,3319.7,3319.6,3.71709474]
[1722316391093,2.40964,3320.0,3319.6,3.71709474]
[1722316391280,0.05240296,3319.7,3319.6,3.71709474]
[1722316391596,0.05252464,3319.7,3319.6,2.60409474]
[1722316391794,2.40964,3320.0,3319.6,37.60409474]
[1722316392025,0.05252464,3319.7,3319.6,35.34339474]
[1722316392195,2.40972,3319.9,3319.6,35.0]
[1722316392563,2.40985,3319.7,3319.6,35.0]
[1722316396119,2.40953,3320.2,3319.6,37.2737]
[1722316396425,0.0525855,3320.1,3319.6,37.2737]
[1722316396595,2.4621455,3320.1,3319.6,37.2737]
[1722316396785,2.4621455,3320.1,3319.6,37.78671047]
[1722316396990,0.0525855,3320.1,3319.6,37.78671047]
[1722316397885,2.4621555,3320.1,3319.6,37.78671047]
[1722316400590,0.0525855,3320.1,3319.6,37.78671047]
[1722316400903,2.40943,3320.3,3319.7,4.16201288]
[1722316401100,0.05264632,3320.2,3319.7,4.16201288]
[1722316401312,2.46213632,3320.2,3319.7,1.113]
[1722316401517,2.46213632,3320.2,3319.8,35.0]
[1722316403430,2.40956,3320.1,3319.8,35.0]
[1722316403622,2.40971,3319.9,3319.8,35.0]
[1722316403937,2.46235632,3319.9,3319.8,35.0]
[1722316404320,2.46235632,3319.9,3319.0,2.275]
[1722316404321,2.40984,3319.8,3319.0,2.275]
[1722316404629,1.113,3320.0,3319.0,2.275]
[1722316404630,2.41016,3319.3,3319.0,0.468542]
[1722316404830,2.95471931,3319.7,3318.7,3.388]
[1722316404831,2.41022,3319.2,3319.1,35.0]
[1722316405329,2.46283356,3319.2,3319.1,35.0]
[1722316406498,4.87309356,3319.2,3319.1,35.0]
[1722316409298,7.32089356,3319.2,3319.1,35.0]
[1722316409566,7.96181597,3319.2,3319.1,35.0]
[1722316409767,4.14094857,3319.2,3319.1,35.0]
[1722316409902,2.46283356,3319.2,3319.1,35.0]
[1722316410419,7.32089356,3319.2,3319.1,35.0]
[1722316410631,2.41046,3318.9,3318.0,2.41106]
[1722316410800,2.41046,3318.9,3318.2,2.4147]
[1722316411014,2.41046,3318.9,3318.3,0.06025902]
[1722316411015,0.69290741,3318.8,3318.3,0.06025902]
[1722316411306,0.05207059,3318.8,3318.3,0.06025902]
[1722316411705,2.41046,3318.9,3318.3,0.06025902]
[1722316412242,2.4478,3319.6,3318.4,2.41072]
[1722316412453,2.41007,3319.4,3318.5,0.06025773]
[1722316412613,0.64074362,3319.3,3318.5,0.06025773]
[1722316412814,2.41044,3318.9,3318.6,35.0]
[1722316413742,0.05204249,3318.8,3318.6,35.0]
[1722316414039,2.41044,3318.9,3318.6,35.0]
[1722316414239,2.41029,3319.1,3318.7,3.04901288]
[1722316414545,0.05204249,3318.8,3318.7,0.06025805]
[1722316414722,2.41029,3319.1,3318.7,0.06025805]
[1722316414915,2.41015,3319.3,3318.7,0.06025805]
[1722316415133,2.41015,3319.3,3318.7,2.51495805]
[1722316415528,2.46205311,3319.2,3318.7,2.51495805]
[1722316416744,0.05181311,3319.2,3318.7,2.51495805]
[1722316417045,2.41043,3319.0,3318.7,2.4547]
[1722316417340,2.41043,3319.0,3318.4,2.3986]
[1722316417541,0.05185525,3318.9,3318.4,2.3986]
[1722316417745,0.05185525,3318.9,3318.8,35.0]
[1722316417912,0.55,3319.5,3318.8,35.0]
[1722316418108,2.41034,3319.1,3318.8,35.0]
[1722316420946,2.41043,3318.9,3318.8,35.0]
[1722316421642,2.41034,3319.1,3318.8,35.0]
[1722316422069,0.04846962,3319.0,3318.8,35.0]
[1722316425567,0.04846962,3319.0,3318.9,2.33]
[1722316425769,2.41029,3319.1,3318.8,35.0]
[1722316426352,0.04850246,3319.0,3318.8,35.0]
[1722316428078,2.45887246,3319.0,3318.8,35.0]
[1722316430107,2.45887246,3319.0,3317.8,2.41118]
[1722316430108,2.41138,3317.6,3317.3,0.63153412]
[1722316430409,2.41094,3318.3,3317.4,2.4115]
[1722316430549,2.41094,3318.3,3317.3,2.41158]
[1722316430550,0.04849308,3317.5,3317.3,2.41158]
[1722316430746,2.41106,3318.1,3317.3,2.41158]
[1722316430977,0.04843208,3317.4,3317.3,2.41158]
[1722316431149,2.41106,3318.1,3317.3,2.41158]
[1722316431347,2.41116,3317.9,3317.4,0.241158]
[1722316431670,2.41116,3317.9,3317.5,35.0]
[1722316431977,2.41091,3318.3,3317.5,37.41143]
[1722316432143,2.41095,3318.2,3317.5,37.41143]
[1722316432344,2.41095,3318.2,3317.6,3.04901288]
[1722316432747,2.41095,3318.2,3317.4,2.652668]
[1722316432951,2.41095,3318.2,3317.7,35.0]
[1722316433559,2.4108,3318.4,3317.7,35.0]
[1722316433771,2.41095,3318.2,3317.7,37.3436]
[1722316435071,2.41103,3318.1,3317.7,37.3436]
[1722316435278,2.41103,3318.1,3317.8,3.04901288]
[1722316436395,2.257,3318.7,3317.7,37.3436]
[1722316436396,4.66762,3318.7,3317.7,37.3436]
[1722316436598,2.41116,3318.0,3317.7,37.3436]
[1722316436883,2.41116,3318.0,3317.7,35.0]
[1722316437658,2.41123,3317.8,3317.7,35.0]
[1722316439805,2.41095,3318.2,3317.7,35.0]
[1722316439975,2.41095,3318.2,3317.8,1.82499706]
[1722316440572,2.41101,3318.1,3317.8,1.82499706]
[1722316441603,2.41093,3318.3,3317.8,1.82499706]
[1722316441966,0.04587572,3318.2,3317.8,1.82499706]
[1722316442393,2.41093,3318.3,3317.8,1.82499706]
[1722316442777,0.04587572,3318.2,3317.8,1.82499706]
[1722316443064,2.41093,3318.3,3317.8,1.82499706]
[1722316443291,2.41093,3318.3,3317.9,0.06027102]
[1722316443492,0.04587572,3318.2,3318.0,35.0]
[1722316443694,2.41093,3318.3,3318.0,35.0]
[1722316444098,0.04553553,3318.2,3318.0,35.0]
[1722316444422,0.04553553,3318.2,3318.1,0.06027092]
[1722316444624,2.41081,3318.4,3318.1,0.06027092]
[1722316444973,0.04553553,3318.3,3318.1,0.06027092]
[1722316445573,2.41087,3318.3,3318.1,0.06027092]
[1722316445973,0.04577052,3318.2,3318.1,0.06027092]
[1722316446178,2.41087,3318.3,3318.1,0.06027092]
[1722316446384,0.04580812,3318.2,3318.1,0.06027092]
[1722316446705,2.41087,3318.3,3318.1,0.06027092]
[1722316446892,2.41077,3318.5,3318.1,0.06027092]
[1722316447072,0.04580812,3318.2,3318.1,0.06027092]
[1722316447286,2.41077,3318.5,3318.1,0.06027092]
[1722316447585,0.04581282,3318.4,3318.1,0.06027092]
[1722316447811,0.04581282,3318.4,3318.1,1.6222348]
[1722316448006,9.78041,3319.0,3318.2,2.41093]
[1722316448311,0.04432147,3318.9,3318.3,0.06025974]
[1722316448489,2.41051,3318.8,3318.4,0.24711897]
[1722316448694,2.41051,3318.8,3318.5,0.06026131]
[1722316450634,0.04456604,3318.7,3318.5,0.06026131]
[1722316450910,2.41051,3318.8,3318.6,35.0]
[1722316451112,2.41037,3319.0,3318.6,35.0]
[1722316452433,2.41045,3318.9,3318.6,35.0]
[1722316452725,2.41052,3318.8,3318.6,35.0]
[1722316452913,2.41058,3318.7,3318.6,35.0]
[1722316453126,2.41045,3318.9,3318.6,35.0]
[1722316453436,2.3196,3319.3,3318.6,35.0]
[1722316453620,2.41058,3318.7,3318.6,35.0]
[1722316456622,2.45537179,3318.7,3318.6,35.0]
[1722316457017,4.86595179,3318.7,3318.6,35.0]
[1722316473964,5.97995179,3318.7,3318.6,35.0]
[1722316476036,4.86595179,3318.7,3318.6,35.0]
[1722316476740,5.97995179,3318.7,3318.6,35.0]
[1722316479545,4.86595179,3318.7,3318.6,35.0]
[1722316482375,6.62105113,3318.7,3318.6,35.0]
[1722316483879,11.18709624,3318.7,3318.6,35.0]
[1722316484077,2.41109,3318.0,3317.7,2.4437]
[1722316484383,2.41118,3317.9,3317.7,2.4437]
[1722316484673,2.41118,3317.9,3317.8,35.0]
[1722316484674,2.45581661,3317.9,3317.8,35.0]
[1722316486346,4.86699661,3317.9,3317.8,35.0]
[1722316487294,2.45581661,3317.9,3317.8,35.0]
[1722316488495,4.86699661,3317.9,3317.8,35.0]
[1722316488791,5.50786758,3317.9,3317.8,35.0]
[1722316489094,5.50786303,3317.9,3317.8,35.0]
[1722316489588,2.45581661,3317.9,3317.8,35.0]
[1722316489795,0.04463661,3317.9,3317.8,35.0]
[1722316489993,0.04463661,3317.9,3317.8,38.04901288]
[1722316490195,2.41114,3318.0,3317.8,38.04901288]
[1722316490497,0.04424148,3317.9,3317.8,35.0]
[1722316490701,0.04424148,3317.9,3317.8,36.114]
[1722316490878,2.41098,3318.2,3317.8,36.114]
[1722316491074,2.41111,3318.0,3317.8,36.114]
[1722316491901,0.04424148,3317.9,3317.8,36.114]
[1722316492376,2.41111,3318.0,3317.8,36.114]
[1722316492796,0.04424148,3317.9,3317.8,36.114]
[1722316493303,4.82214,3318.1,3317.8,38.4483]
[1722316493468,2.41106,3318.1,3318.0,1.114]
[1722316493670,0.04436378,3318.1,3318.0,1.114]
[1722316493873,2.41072,3318.5,3318.0,2.71810838]
[1722316494065,2.41072,3318.5,3318.4,1.114]
[1722316495191,2.41058,3318.7,3318.4,1.114]
[1722316495404,3.0516824,3318.6,3318.4,1.114]
[1722316495699,2.41067,3318.6,3318.4,1.114]
[1722316496884,2.41067,3318.6,3318.5,35.0]
[1722316497301,4.82137,3318.6,3318.5,35.0]
[1722316497613,8.42523843,3318.6,3318.5,35.0]
[1722316498385,2.41115,3318.0,3317.8,2.3343]
[1722316498707,3.60386843,3318.6,3317.8,2.3343]
[1722316498708,2.41095,3318.2,3317.8,2.3343]
[1722316498911,2.41095,3318.2,3317.9,35.0]
[1722316499420,2.41102,3318.1,3317.9,35.0]
[1722316499921,2.41109,3318.0,3317.9,35.0]
[1722316500118,2.4554397,3318.0,3317.9,35.0]
[1722316501522,0.0443497,3318.0,3317.9,35.0]
[1722316501899,2.4697,3318.5,3317.9,35.0]
[1722316502130,2.41109,3318.0,3317.9,35.0]
[1722316502893,2.4551998,3318.0,3317.9,35.0]
[1722316503598,4.8662898,3318.0,3317.9,35.0]
[1722316503837,5.50723751,3318.0,3317.9,35.0]
[1722316506519,4.8662898,3318.0,3317.9,35.0]
[1722316506818,5.50702956,3318.0,3317.9,35.0]
[1722316507033,6.05702956,3318.0,3317.9,35.0]
[1722316508140,5.50703205,3318.0,3317.9,35.0]
[1722316508347,4.8662898,3318.0,3317.9,35.0]
[1722316511444,2.4551998,3318.0,3317.9,35.0]
[1722316514717,5.50713016,3318.0,3317.9,35.0]
[1722316514914,2.4551998,3318.0,3317.9,35.0]
[1722316515694,4.8662898,3318.0,3317.9,35.0]
[1722316516179,2.4551998,3318.0,3317.9,35.0]
[1722316516725,4.8662898,3318.0,3317.9,35.0]
[1722316517129,2.4551998,3318.0,3317.9,35.0]
[1722316517359,4.8662898,3318.0,3317.9,35.0]
[1722316517525,2.4551998,3318.0,3317.9,35.0]
[1722316517726,4.8662898,3318.0,3317.9,35.0]
[1722316517955,2.4551998,3318.0,3317.9,35.0]
[1722316518863,0.0441098,3318.0,3317.9,35.0]
[1722316519171,2.41099,3318.2,3317.9,35.0]
[1722316519461,0.04228729,3318.0,3317.5,2.3822]
[1722316519628,2.41099,3318.2,3317.6,0.479372]
[1722316519824,0.04228729,3317.9,3317.7,35.0]
[1722316520028,2.41102,3318.1,3317.7,35.0]
[1722316520325,0.04228729,3318.0,3317.7,35.0]
[1722316520942,2.45338729,3318.0,3317.7,35.0]
[1722316521337,2.41123,3317.8,3317.7,35.0]
[1722316521724,2.45358796,3317.8,3317.7,35.0]
[1722316523464,0.04235796,3317.8,3317.7,35.0]
[1722316523836,2.41109,3318.0,3317.7,35.0]
[1722316524246,0.04230616,3317.9,3317.7,35.0]
[1722316524761,2.45347616,3317.9,3317.7,35.0]
[1722316527263,4.82246,3317.8,3317.7,35.0]
[1722316527442,5.46337719,3317.8,3317.7,35.0]
[1722316527643,5.50567391,3317.8,3317.7,35.0]
[1722316527863,4.86475672,3317.8,3317.7,35.0]
[1722316528371,5.5056298,3317.8,3317.7,35.0]
[1722316530573,3.0943998,3317.8,3317.7,35.0]
[1722316530769,2.45352672,3317.8,3317.7,35.0]
[1722316531338,3.09454104,3317.8,3317.7,35.0]
[1722316531680,3.09460193,3317.8,3317.7,35.0]
[1722316532536,2.45352672,3317.8,3317.7,35.0]
[1722316532740,3.09475908,3317.8,3317.7,35.0]
[1722316533986,0.04229672,3317.8,3317.7,37.3135]
[1722316534350,2.41117,3317.9,3317.7,37.3135]
[1722316534653,0.04229202,3317.8,3317.7,37.3135]
[1722316534978,2.41117,3317.9,3317.7,37.3135]
[1722316535174,0.04229202,3317.8,3317.7,37.3135]
[1722316535477,2.41117,3317.9,3317.7,37.3135]
[1722316535649,0.04232969,3317.8,3317.7,37.3135]
[1722316535851,0.04232969,3317.8,3317.7,35.0]
[1722316536180,2.41117,3317.9,3317.7,35.0]
[1722316536676,2.41101,3318.1,3317.7,35.0]
[1722316536677,5.50609908,3317.8,3317.7,35.0]
[1722316537186,3.09485997,3317.8,3317.7,35.0]
[1722316537384,2.45355969,3317.8,3317.7,35.0]
[1722316537854,0.04232969,3317.8,3317.7,35.0]
[1722316538054,2.41117,3317.9,3317.7,35.0]
[1722316538394,0.04234852,3317.8,3317.7,35.0]
[1722316539876,0.04234852,3317.8,3317.4,1.114]
[1722316540038,0.04234852,3317.8,3317.4,1.17428087]
[1722316540373,0.04234852,3317.8,3317.7,35.0]
[1722316540736,2.41117,3317.9,3317.7,35.0]
[1722316541576,0.64138684,3317.8,3317.7,35.0]
[1722316544380,3.05261684,3317.8,3317.7,35.0]
[1722316544846,3.09495123,3317.8,3317.7,35.0]
[1722316546495,6.05678535,3317.8,3317.7,35.0]
[1722316546713,2.41167,3317.2,3316.8,2.4854]
[1722316547208,0.04234854,3317.1,3316.9,35.0]
[1722316547570,2.41167,3317.2,3316.9,35.0]
[1722316547748,2.41167,3317.2,3316.9,38.04901288]
[1722316547953,0.04234854,3317.1,3316.9,38.04901288]
[1722316548495,2.41167,3317.2,3316.9,38.04901288]
[1722316548797,2.41181,3317.0,3316.9,35.0]
[1722316548979,3.05335759,3317.0,3316.9,35.0]
[1722316549185,5.46516759,3317.0,3316.9,35.0]
[1722316549350,5.50751613,3317.0,3316.9,35.0]
[1722316550761,10.25412613,3317.0,3316.9,35.0]
[1722316550960,10.25412613,3317.0,3315.6,2.34]
[1722316550961,2.4124,3316.2,3315.6,2.34]
[1722316551149,2.41259,3316.0,3315.6,2.34]
[1722316551350,1.114,3316.0,3315.1,2.34]
[1722316551574,1.114,3316.0,3315.1,4.75319]
[1722316551575,2.41271,3315.8,3315.1,4.75319]
[1722316551778,1.114,3315.4,3315.2,0.475319]
[1722316551952,1.114,3315.4,3315.3,35.0]
[1722316551953,2.41298,3315.4,3315.3,35.0]
[1722316552997,2.45422603,3315.4,3315.3,35.0]
[1722316553359,2.41298,3315.4,3315.3,35.0]
[1722316554190,4.86690906,3315.4,3315.3,35.0]
[1722316560580,2.45392906,3315.4,3315.3,35.0]
[1722316561477,0.04094906,3315.4,3315.3,38.04901288]
[1722316561882,2.41284,3315.6,3315.3,38.04901288]
[1722316562202,2.41284,3315.6,3315.3,35.0]
[1722316562537,4.82596,3315.4,3315.3,35.0]
[1722316562905,4.86614523,3315.4,3315.3,35.0]
[1722316563506,2.45316523,3315.4,3315.3,35.0]
[1722316563726,4.86614523,3315.4,3315.3,35.0]
[1722316564786,5.35275975,3315.4,3315.3,35.0]
[1722316565018,4.86614523,3315.4,3315.3,35.0]
[1722316566146,2.45316523,3315.4,3315.3,35.0]
[1722316567500,4.86614523,3315.4,3315.3,35.0]
[1722316567709,2.45316523,3315.4,3315.3,35.0]
[1722316568646,4.86614523,3315.4,3315.3,35.0]
[1722316569153,2.45316523,3315.4,3315.3,35.0]
[1722316570220,4.86614523,3315.4,3315.3,35.0]
[1722316570821,2.45316523,3315.4,3315.3,35.0]
[1722316571459,4.86614523,3315.4,3315.3,35.0]
[1722316572654,2.45316523,3315.4,3315.3,35.0]
[1722316572840,4.86614523,3315.4,3315.3,35.0]
[1722316573452,2.45316523,3315.4,3315.3,35.0]
[1722316573664,4.86614523,3315.4,3315.3,35.0]
[1722316573809,2.45316523,3315.4,3315.3,35.0]
[1722316574003,4.86614523,3315.4,3315.3,35.0]
[1722316574551,2.45316523,3315.4,3315.3,35.0]
[1722316577731,2.41313,3315.2,3315.0,2.3063]
[1722316577936,0.03966633,3315.1,3315.0,2.3063]
[1722316578182,0.03966633,3315.1,3315.0,37.3063]
[1722316578349,2.41298,3315.4,3315.0,37.3063]
[1722316578545,0.03985034,3315.1,3315.0,37.3063]
[1722316578776,2.41312,3315.3,3315.0,37.3063]
[1722316579165,0.03985034,3315.2,3315.0,37.3063]
[1722316579349,2.41312,3315.3,3315.0,37.3063]
[1722316579552,0.03985034,3315.1,3315.0,37.3063]
[1722316579784,2.41312,3315.3,3315.0,37.3063]
[1722316579984,2.41313,3315.2,3315.0,37.3063]
[1722316580794,2.41302,3315.4,3315.0,37.3063]
[1722316580941,2.41306,3315.3,3315.0,37.3063]
[1722316581456,0.03985977,3315.2,3315.0,37.3063]
[1722316581872,2.41317,3315.2,3315.0,37.3063]